fUST/lending_fUST_20251215
["ID","MTS","AMOUNT","RATE_DAILY","PERIOD"]
[398504789,1765762237940,-457.16103934,0.00013597,2]
[398504791,1765762237949,-461.41025859,0.00013597,2]
[398504823,1765762240251,-38.58974141,0.00013597,2]
[398504824,1765762240261,-500.0,0.00013597,2]
[398504825,1765762240270,-500.0,0.00013597,2]
[398504826,1765762240279,-500.0,0.00013597,2]
[398504827,1765762240290,-500.0,0.00013597,2]
[398504828,1765762240299,-343.15441289,0.00013597,2]
[398504829,1765762240308,-152.14,0.000136,2]
[398504830,1765762240317,-711.52847133,0.000136,2]
[398504831,1765762240328,-1411.90000085,0.000136,2]
[398504982,1765762242925,-590.86000074,0.000136,2]
[398505301,1765762245959,-7285.71152708,0.000136,2]
[398505303,1765762245968,-316.6057358,0.00013659,2]
[398505305,1765762245976,-1001.0,0.0001369,2]
[398505307,1765762245985,-2773.56790519,0.0001369,2]
[398505309,1765762245994,-271.87216818,0.00013698,2]
[398505311,1765762246003,-947.859979,0.00013699,2]
[398505313,1765762246012,-1000.0,0.00013699,2]
[398505315,1765762246021,-36400.04,0.00013699,2]
[398505317,1765762246030,-500.0,0.00013699,2]
[398505319,1765762246040,-500.0,0.00013699,2]
[398505321,1765762246049,-500.0,0.00013699,2]
[398505323,1765762246058,-152.14,0.000137,2]
[398505325,1765762246067,-152.14,0.000138,2]
[398505327,1765762246077,-500.0,0.00013821,2]
[398505329,1765762246086,-1000.0,0.00013821,2]
[398505331,1765762246095,-831.75539607,0.00013821,2]
[398505333,1765762246104,-503.39403741,0.00013821,2]
[398505335,1765762246113,-1000.0,0.00013821,2]
[398505337,1765762246122,-502.66826887,0.00013821,2]
[398505339,1765762246134,-152.14,0.000139,2]
[398505340,1765762246143,-1001.0,0.00014238,2]
[398505341,1765762246152,-1000.0,0.00014247,2]
[398505342,1765762246161,-1000.0,0.00014247,2]
[398505343,1765762246170,-1000.0,0.00014247,2]
[398505344,1765762246179,-206.40747985,0.00014368,2]
[398505345,1765762246188,-186.994,0.00014368,2]
[398505346,1765762246199,-500.0,0.00014368,2]
[398505347,1765762246208,-1500.0,0.00014368,2]
[398505348,1765762246217,-1500.0,0.00014368,2]
[398505349,1765762246226,-98567.45223705,0.00014467,2]
[398505350,1765762246238,-1331.17307,0.00014467,2]
[398505351,1765762246249,-295.13886484,0.00014467,2]
[398505371,1765762249583,150.0,7.102e-05,2]
[398505372,1765762267424,-207.50765574,0.000129,2]
[398505373,1765762293823,525.915528,0.00013272,12]
[398505374,1765762298904,-430.1834341,0.00013273,2]
[398505375,1765762299485,-69.8165659,0.00013273,2]
[398505376,1765762299514,-500.0,0.00013273,2]
[398505377,1765762312263,150.0,7.817e-05,2]
[398505378,1765762326394,502.67081721,0.00013273,2]
[398505379,1765762362183,600.0,0.00019,120]
[398505380,1765762420960,-300.0,0.00013598,2]
[398505381,1765762420982,-500.0,0.00013599,2]
[398505382,1765762421004,-635.06700105,0.00013599,2]
[398505383,1765762421026,-257.97757505,0.00013599,2]
[398505384,1765762421049,-500.0,0.00013599,2]
[398505385,1765762421071,-616.14297317,0.00013599,2]
[398505386,1765762421093,-379.62206158,0.00013599,2]
[398505387,1765762421116,-10000.0,0.000136,2]
[398505388,1765762421141,-282.71175518,0.00013611,2]
[398505389,1765762421163,-500.0,0.00013698,2]
[398505390,1765762421187,-500.0,0.00013698,2]
[398505391,1765762421210,-514.69529512,0.00013698,2]
[398505392,1765762421234,-500.0,0.00013699,2]
[398505393,1765762421258,-500.0,0.00013699,2]
[398505394,1765762421288,-500.0,0.00013699,2]
[398505395,1765762421313,-1000.0,0.00014247,2]
[398505396,1765762421338,-1000.0,0.00014247,2]
[398505397,1765762421361,-1000.0,0.00014247,2]
[398505398,1765762421653,-5000.0,0.00014322,2]
[398505399,1765762421682,-188.732,0.00014458,2]
[398505400,1765762421707,-191.68226465,0.00014466,2]
[398505401,1765762421734,-133.3690742,0.00014467,2]
[398505402,1765762422569,-25000.0,0.00014467,2]
[398505403,1765762423227,-25000.0,0.00014467,2]
[398505404,1765762423842,-25000.0,0.00014467,2]
[398505405,1765762424689,-25000.0,0.00014467,2]
[398505406,1765762425468,-5000.0,0.00014322,2]
[398505407,1765762425503,-20000.0,0.00014467,2]
[398505408,1765762426201,-25000.0,0.00014467,2]
[398505409,1765762426627,-25000.0,0.00014467,2]
[398505410,1765762427218,-25000.0,0.00014467,2]
[398505411,1765762428074,-25000.0,0.00014467,2]
[398505412,1765762428825,-25000.0,0.00014467,2]
[398505413,1765762429620,-25000.0,0.00014467,2]
[398505415,1765762432462,-25000.0,0.00014467,2]
[398505416,1765762433403,-25000.0,0.00014467,2]
[398505417,1765762434588,-25000.0,0.00014467,2]
[398505418,1765762453059,-500.0,0.00013699,2]
[398505419,1765762453082,-1000.0,0.00014247,2]
[398505420,1765762453107,-3900.0,0.00014321,2]
[398505421,1765762462086,500.0,0.00013273,2]
[398505422,1765762509647,558.07287305,0.00013273,2]
[398505423,1765762514687,507.21829996,0.00013273,2]
[398505424,1765762514874,500.0,0.00013273,2]
[398505425,1765762532452,262.98652803,0.00013071,2]
[398505426,1765762566869,505.6140749,0.00013273,2]
[398505427,1765762567766,500.0,0.00013273,2]
[398505428,1765762570946,150.0,7.626e-05,2]
[398505429,1765762571648,150.0,7.989e-05,2]
[398505430,1765762571892,150.0,8.353e-05,2]
[398505431,1765762572264,150.0,8.716e-05,2]
[398505432,1765762572678,150.0,9.079e-05,2]
[398505433,1765762573083,150.0,9.442e-05,2]
[398505434,1765762573493,150.0,9.805e-05,2]
[398505435,1765762573906,168.83,0.00010168,2]
[398505436,1765762574322,189.93,0.00010531,2]
[398505437,1765762574769,211.03,0.00010895,2]
[398505438,1765762575182,283.59752007,0.00010795,2]
[398505439,1765762575695,334.64507369,0.00012795,2]
[398505440,1765762577757,500.0,0.00013273,2]
[398505441,1765762631108,500.0,0.00013273,2]
[398505442,1765762641530,3428.0856303,0.00013418,2]
[398505443,1765762641552,1571.9143697,0.00013418,2]
[398505444,1765762650336,5000.0,0.00013418,2]
[398505445,1765762666546,3428.0956303,0.00013418,2]
[398505446,1765762666567,1571.9043697,0.00013418,2]
[398505447,1765762674667,5000.0,0.00013418,2]
[398505448,1765762683535,202.56,9.99e-05,2]
[398505449,1765762683849,202.55,9.99e-05,2]
[398505450,1765762689907,3022.9956303,0.00013418,2]
[398505451,1765762689930,1977.0043697,0.00013418,2]
[398505452,1765762695931,500.0,0.00013273,2]
[398505453,1765762698207,5000.0,0.00013418,2]
[398505454,1765762703629,203.63925456,9.277e-05,2]
[398505457,1765762714455,2319.36637574,0.00013418,2]
[398505458,1765762714479,2680.63362426,0.00013418,2]
[398505460,1765762736960,5000.0,0.00013418,2]
[398505464,1765762751479,500.0,0.00013273,2]
[398505465,1765762752459,500.0,0.00013273,2]
[398505466,1765762759622,1319.37637574,0.00013418,2]
[398505467,1765762759643,3680.62362426,0.00013418,2]
[398505468,1765762782337,5000.0,0.00013418,2]
[398505470,1765762804562,1319.38637574,0.00013418,2]
[398505471,1765762804593,3680.61362426,0.00013418,2]
[398505490,1765762821552,500.0,0.00013273,2]
[398505494,1765762828078,5000.0,0.00013418,2]
[398505495,1765762851166,819.39637574,0.00013418,2]
[398505496,1765762851188,4180.60362426,0.00013418,2]
[398505497,1765762871029,500.0,0.00013273,2]
[398505498,1765762873496,5000.0,0.00013418,2]
[398505499,1765762896303,319.40637574,0.00013418,2]
[398505500,1765762896327,4680.59362426,0.00013418,2]
[398505501,1765762918614,5000.0,0.00013418,2]
[398505502,1765762923170,156.56,0.00012,2]
[398505503,1765762923235,156.56,0.000122,2]
[398505504,1765762923515,6.29637574,0.000124,2]
[398505505,1765762923540,150.26362426,0.000124,2]
[398505506,1765762923990,156.56,0.000126,2]
[398505507,1765762924119,156.56,0.000128,2]
[398505508,1765762924396,156.56,0.00013,2]
[398505509,1765762924763,156.56,0.000132,2]
[398505510,1765762925074,156.56,0.000134,2]
[398505511,1765762939024,500.0,0.00013273,2]
[398505512,1765762942159,5000.0,0.00013418,2]
[398505514,1765762964359,3566.94637574,0.00013418,2]
[398505515,1765762967796,-1433.05362426,0.00013418,2]
[398505516,1765762982651,301.13540282,0.00013,2]
[398505517,1765762984554,156.75,0.00012,2]
[398505518,1765762985206,156.75,0.000125,2]
[398505519,1765762985740,156.75,0.00013,2]
[398505520,1765762986904,5000.0,0.00013418,2]
[398505521,1765762991468,500.0,0.00013273,2]
[398505522,1765762995160,862.51734866,0.00013418,2]
[398505523,1765762995184,4137.48265134,0.00013418,2]
[398505524,1765763010790,5000.0,0.00013418,2]
[398505525,1765763023016,150.0,7.124e-05,2]
[398505526,1765763023452,150.0,7.463e-05,2]
[398505527,1765763023858,220.93,7.803e-05,2]
[398505528,1765763024338,294.58,8.142e-05,2]
[398505529,1765763024711,47.01734866,8.481e-05,2]
[398505530,1765763024734,321.20265134,8.481e-05,2]
[398505531,1765763025072,441.87,8.82e-05,2]
[398505532,1765763025490,515.51,9.16e-05,2]
[398505533,1765763025882,589.15,9.499e-05,2]
[398505534,1765763026270,662.8,9.838e-05,2]
[398505535,1765763026913,736.44,0.00010177,2]
[398505536,1765763033116,5000.0,0.00013418,2]
[398505537,1765763044361,156.74,0.00012,2]
[398505538,1765763056856,500.0,0.00013273,2]
[398505539,1765763057204,5000.0,0.00013589,2]
[398505540,1765763079625,4500.01,0.00013589,2]
[398505541,1765763079648,499.99,0.00013589,2]
[398505542,1765763086252,-300.0,0.00013599,2]
[398505543,1765763098017,150.0,7.132e-05,2]
[398505544,1765763098429,295.72,7.472e-05,2]
[398505545,1765763098822,443.58,7.812e-05,2]
[398505546,1765763099248,591.44,8.151e-05,2]
[398505547,1765763099669,739.3,8.491e-05,2]
[398505548,1765763100339,887.16,8.83e-05,2]
[398505549,1765763100489,1035.02,9.17e-05,2]
[398505550,1765763100956,1182.88,9.51e-05,2]
[398505551,1765763101348,1330.74,9.849e-05,2]
[398505552,1765763101768,1478.59,0.00010189,2]
[398505553,1765763102391,5000.0,0.00013599,2]
[398505554,1765763106810,500.0,0.00013273,2]
[398505555,1765763111099,4500.01,0.00013599,2]
[398505556,1765763111122,499.99,0.00013599,2]
[398505558,1765763116229,1001.0,0.00013592,2]
[398505559,1765763117517,-279.9326682,0.000136,2]
[398505560,1765763122227,501.25982478,0.00013273,2]
[398505561,1765763122959,499.03803783,0.00013273,2]
[398505562,1765763126156,5000.0,0.000136,2]
[398505566,1765763134022,3439.84680099,0.000136,2]
[398505567,1765763134044,1560.15319901,0.000136,2]
[398505573,1765763149706,5000.0,0.000136,2]
[398505574,1765763158079,3439.85680099,0.000136,2]
[398505575,1765763158100,1560.14319901,0.000136,2]
[398505576,1765763162756,155.61,0.000111,2]
[398505577,1765763164521,-614.0,0.000136,2]
[398505578,1765763164549,-303.43596903,0.000136,2]
[398505579,1765763166739,501.62943547,0.00013273,2]
[398505580,1765763168558,500.0,0.00013273,2]
[398505581,1765763171295,7163.50862647,0.000136,2]
[398505582,1765763171317,236.49137353,0.000136,2]
[398505583,1765763173094,5000.0,0.000136,2]
[398505584,1765763174963,179.67992165,0.00012934,2]
[398505585,1765763176084,150.0,7.123e-05,2]
[398505586,1765763176394,500.99688142,0.00013273,2]
[398505587,1765763176471,150.0,7.462e-05,2]
[398505588,1765763176744,500.0,0.00013273,2]
[398505589,1765763176896,222.55,7.802e-05,2]
[398505590,1765763177175,500.0,0.00013273,2]
[398505591,1765763177304,296.73,8.141e-05,2]
[398505592,1765763177742,370.92,8.48e-05,2]
[398505593,1765763178147,445.1,8.819e-05,2]
[398505594,1765763178598,519.29,9.158e-05,2]
[398505595,1765763179034,593.47,9.498e-05,2]
[398505596,1765763179448,334.7818234,9.837e-05,2]
[398505597,1765763179476,332.8681766,9.837e-05,2]
[398505598,1765763179528,500.0,0.00013273,2]
[398505599,1765763179877,741.84,0.00010176,2]
[398505600,1765763180876,5000.0,0.000136,2]
[398505601,1765763192449,424.96467442,0.000136,2]
[398505602,1765763196053,4575.04532558,0.00013663,2]
[398505603,1765763196074,424.95467442,0.00013663,2]
[398505604,1765763203837,5000.0,0.00013663,2]
[398505605,1765763219017,4575.05532558,0.00013663,2]
[398505606,1765763219039,424.94467442,0.00013663,2]
[398505607,1765763222852,155.78,0.000111,2]
[398505608,1765763223197,155.78,0.000118,2]
[398505609,1765763223615,155.78,0.000126,2]
[398505610,1765763223926,155.78,0.000133,2]
[398505611,1765763226059,500.0,0.00013273,2]
[398505612,1765763226765,5000.0,0.00013663,2]
[398505613,1765763241992,3451.94532558,0.00013663,2]
[398505614,1765763242013,1548.05467442,0.00013663,2]
[398505615,1765763249774,5000.0,0.00013663,2]
[398505616,1765763251589,150.0,7.198e-05,2]
[398505617,1765763251955,291.25,7.541e-05,2]
[398505618,1765763252371,436.88,7.884e-05,2]
[398505619,1765763252781,582.51,8.226e-05,2]
[398505620,1765763253252,728.14,8.569e-05,2]
[398505621,1765763253602,873.76,8.912e-05,2]
[398505622,1765763254805,389.41532558,9.255e-05,2]
[398505623,1765763254829,629.97467442,9.255e-05,2]
[398505624,1765763254990,1165.02,9.598e-05,2]
[398505625,1765763255392,1310.65,9.94e-05,2]
[398505626,1765763255985,1456.27,0.00010283,2]
[398505627,1765763265723,5000.0,0.00013663,2]
[398505628,1765763273652,438.09532558,0.00013663,2]
[398505629,1765763273676,4561.90467442,0.00013663,2]
[398505630,1765763283005,161.13,0.00012,2]
[398505631,1765763283250,161.13,0.000127,2]
[398505632,1765763283567,161.13,0.000133,2]
[398505633,1765763284971,500.0,0.00013273,2]
[398505634,1765763285661,500.0,0.00013273,2]
[398505635,1765763289029,5000.0,0.00013413,2]
[398505636,1765763294668,378.90223578,0.00013273,2]
[398505637,1765763295498,500.0,0.00013273,2]
[398505638,1765763311574,2637.71776422,0.00013413,2]
[398505639,1765763311596,2362.28223578,0.00013413,2]
[398505641,1765763333974,5000.0,0.0001359,2]
[398505642,1765763339619,150.0,7.197e-05,2]
[398505643,1765763340089,268.99,7.54e-05,2]
[398505644,1765763340488,403.48,7.883e-05,2]
[398505645,1765763340925,537.98,8.225e-05,2]
[398505646,1765763341744,672.47,8.568e-05,2]
[398505647,1765763341921,806.96,8.911e-05,2]
[398505648,1765763342169,941.46,9.253e-05,2]
[398505649,1765763342569,1075.95,9.596e-05,2]
[398505650,1765763342967,142.72,9.939e-05,2]
[398505651,1765763342990,1067.73,9.939e-05,2]
[398505652,1765763343363,1344.94,0.00010282,2]
[398505653,1765763344718,157.7,0.000111,2]
[398505654,1765763345218,157.7,0.000117,2]
[398505655,1765763345424,157.7,0.000123,2]
[398505656,1765763345616,157.7,0.000128,2]
[398505657,1765763346042,157.7,0.000134,2]
[398505658,1765763357033,5000.0,0.0001341,2]
[398505659,1765763358909,500.0,0.00013273,2]
[398505660,1765763359406,585.537446,0.00013273,2]
[398505661,1765763360152,500.0,0.00013273,2]
[398505662,1765763379998,3414.472554,0.0001341,2]
[398505663,1765763380020,1585.527446,0.0001341,2]
[398505664,1765763382883,150.0,5.2e-07,2]
[398505665,1765763384161,150.0,5.2e-07,2]
[398505666,1765763385015,150.0,5.2e-07,2]
[398505667,1765763386038,150.0,5.2e-07,2]
[398505668,1765763387085,150.0,5.2e-07,2]
[398505669,1765763394482,-2399.0,0.000136,2]
[398505670,1765763396958,190.37281578,9.294e-05,2]
[398505671,1765763402336,5000.0,0.000136,2]
[398505672,1765763408283,11.63718422,0.00013273,2]
[398505673,1765763408306,488.36281578,0.00013273,2]
[398505674,1765763410349,5000.0,0.000136,2]
[398505675,1765763411701,500.0,0.00013273,2]
[398505676,1765763412095,2471.0,0.000136,2]
[398505677,1765763416797,232.28,7.208e-05,2]
[398505678,1765763417183,464.56,7.551e-05,2]
[398505679,1765763417849,696.84,7.895e-05,2]
[398505680,1765763418036,635.33,8.238e-05,2]
[398505681,1765763418059,293.79,8.238e-05,2]
[398505682,1765763418445,1161.39,8.581e-05,2]
[398505683,1765763418856,1393.67,8.924e-05,2]
[398505684,1765763418970,500.0,0.00013273,2]
[398505685,1765763419280,1625.95,9.268e-05,2]
[398505686,1765763419682,1858.23,9.611e-05,2]
[398505687,1765763420081,2090.51,9.954e-05,2]
[398505688,1765763420631,1076.47,0.00010297,2]
[398505689,1765763420663,1246.32,0.00010297,2]
[398505690,1765763423464,211.72074807,0.00012908,2]
[398505691,1765763424390,500.0,0.00013273,2]
[398505692,1765763425985,500.0,0.00013273,2]
[398505693,1765763426263,5000.0,0.00013663,2]
[398505694,1765763428571,168.86826667,9.294e-05,2]
[398505714,1765763434068,5000.0,0.00013413,2]
[398505720,1765763437885,-300.0,0.00013673,2]
[398505721,1765763437895,-615.0,0.00013673,2]
[398505722,1765763437904,-280.16056503,0.00013685,2]
[398505723,1765763437915,-1001.0,0.0001369,2]
[398505724,1765763437926,-1200.0,0.00013697,2]
[398505725,1765763437935,-500.0,0.00013698,2]
[398505726,1765763437944,-613.9049504,0.00013698,2]
[398505727,1765763437953,-300.0,0.00013698,2]
[398505728,1765763437962,-1869.008667,0.00013699,2]
[398505729,1765763437972,-501.92606456,0.00013699,2]
[398505730,1765763437981,-500.0,0.00013699,2]
[398505731,1765763437991,-500.0,0.00013699,2]
[398505732,1765763438001,-500.0,0.00013699,2]
[398505733,1765763438010,-500.61404104,0.00013699,2]
[398505734,1765763438020,-501.08767492,0.00013699,2]
[398505735,1765763438030,-500.61935605,0.00013699,2]
[398505736,1765763438040,-500.0,0.00013699,2]
[398505737,1765763438050,-1000.0,0.00013821,2]
[398505738,1765763438061,-1000.0,0.00013821,2]
[398505739,1765763438071,-501.26470097,0.00013821,2]
[398505740,1765763438080,-500.0,0.00013821,2]
[398505741,1765763438090,-1000.0,0.00013821,2]
[398505742,1765763438099,-206.97730246,0.00013995,2]
[398505743,1765763438108,-178.86941779,0.00013995,2]
[398505744,1765763438118,-300.0,0.00014,2]
[398505745,1765763438127,-236.54548853,0.00014094,2]
[398505746,1765763438136,-600.0,0.00014221,2]
[398505747,1765763438145,-2000.0,0.00014238,2]
[398505748,1765763438155,-2000.0,0.00014238,2]
[398505749,1765763438164,-2000.0,0.00014238,2]
[398505750,1765763438173,-2000.0,0.00014238,2]
[398505751,1765763438182,-1001.0,0.00014238,2]
[398505752,1765763438192,-1000.0,0.00014247,2]
[398505753,1765763438201,-1000.0,0.00014247,2]
[398505754,1765763438210,-1000.0,0.00014247,2]
[398505755,1765763438219,-502.25546164,0.00014247,2]
[398505756,1765763438228,-8789.62070069,0.00014268,2]
[398505757,1765763438237,-10699.72213864,0.00014367,2]
[398505809,1765763440231,-24969.26443669,0.00014367,2]
[398505811,1765763440245,-499.7358338,0.00014367,2]
[398505902,1765763441625,175.64067074,0.00012908,2]
[398506090,1765763443363,-6366.99928903,0.00014367,2]
[398506206,1765763462638,154.79,0.00012,2]
[398506207,1765763462967,154.79,0.000125,2]
[398506208,1765763463252,154.79,0.00013,2]
[398506209,1765763479945,500.0,0.00013273,2]
[398506210,1765763493550,396.84,7.135e-05,2]
[398506211,1765763493949,793.69,7.474e-05,2]
[398506212,1765763494351,1190.53,7.814e-05,2]
[398506213,1765763494757,1587.37,8.154e-05,2]
[398506214,1765763495185,1984.22,8.494e-05,2]
[398506215,1765763495565,2381.06,8.833e-05,2]
[398506216,1765763496171,701.93,9.173e-05,2]
[398506217,1765763496194,2075.98,9.173e-05,2]
[398506218,1765763496819,3174.75,9.513e-05,2]
[398506219,1765763497221,3571.59,9.852e-05,2]
[398506220,1765763497622,1177.69,0.00010192,2]
[398506221,1765763497646,2790.75,0.00010192,2]
[398506222,1765763524256,154.34,0.00012,2]
[398506223,1765763527917,500.0,0.00013273,2]
[398506224,1765763530544,154.34,0.000123,2]
[398506225,1765763530834,154.34,0.000127,2]
[398506226,1765763531129,154.34,0.00013,2]
[398506227,1765763531365,500.0,0.00013273,2]
[398506228,1765763531470,154.34,0.000133,2]
[398506229,1765763535306,500.0,0.00013273,2]
[398506230,1765763538484,500.0,0.00013273,2]
[398506231,1765763542926,500.0,0.00013273,2]
[398506232,1765763543013,500.24324975,0.00013273,2]
[398506233,1765763543041,500.0,0.00013273,2]
[398506234,1765763570890,395.84,7.316e-05,2]
[398506235,1765763571319,791.67,7.664e-05,2]
[398506236,1765763571737,1187.51,8.013e-05,2]
[398506237,1765763572134,562.29675025,8.361e-05,2]
[398506238,1765763572157,1021.05324975,8.361e-05,2]
[398506239,1765763572533,1979.19,8.709e-05,2]
[398506240,1765763572956,2375.02,9.058e-05,2]
[398506242,1765763573385,2770.86,9.406e-05,2]
[398506243,1765763573801,1853.88675025,9.754e-05,2]
[398506244,1765763573826,1312.81324975,9.754e-05,2]
[398506245,1765763574469,3562.54,0.00010103,2]
[398506246,1765763574667,3958.37,0.00010451,2]
[398506247,1765763583738,152.89,0.000111,2]
[398506248,1765763584045,152.89,0.000126,2]
[398506249,1765763585184,860.50675025,0.00013417,2]
[398506250,1765763585205,4139.49324975,0.00013417,2]
[398506251,1765763643934,5000.0,0.00013417,2]
[398506252,1765763645741,500.0,0.00013273,2]
[398506253,1765763646897,360.51675025,0.00013273,2]
[398506254,1765763646918,139.48324975,0.00013273,2]
[398506255,1765763646954,206.2,7.214e-05,2]
[398506256,1765763647563,412.4,7.558e-05,2]
[398506257,1765763647682,500.0,0.00013273,2]
[398506258,1765763648042,618.59,7.901e-05,2]
[398506259,1765763648222,824.79,8.245e-05,2]
[398506260,1765763648552,1030.99,8.589e-05,2]
[398506261,1765763648957,1237.19,8.932e-05,2]
[398506262,1765763649414,1443.38,9.276e-05,2]
[398506263,1765763649824,1649.58,9.619e-05,2]
[398506264,1765763650218,210.30039563,9.963e-05,2]
[398506265,1765763650241,1645.47960437,9.963e-05,2]
[398506266,1765763650643,291.92714588,0.00010306,2]
[398506267,1765763650666,1770.05285412,0.00010306,2]
[398506268,1765763651553,5000.0,0.00013417,2]
[398506269,1765763658003,500.0,0.00013273,2]
[398506270,1765763666991,5000.0,0.00013417,2]
[398506271,1765763674473,4500.01,0.00013417,2]
[398506272,1765763674495,499.99,0.00013417,2]
[398506273,1765763691203,5000.0,0.00013417,2]
[398506274,1765763691922,150.0,5.2e-07,2]
[398506275,1765763692925,150.0,5.2e-07,2]
[398506276,1765763694024,150.0,5.2e-07,2]
[398506277,1765763699142,4050.02,0.00013417,2]
[398506278,1765763699169,949.98,0.00013417,2]
[398506279,1765763705006,527.03161684,0.00013273,2]
[398506280,1765763714568,5000.0,0.00013417,2]
[398506281,1765763722303,3522.99838316,0.00013417,2]
[398506282,1765763722325,1477.00161684,0.00013417,2]
[398506283,1765763723311,150.0,7.231e-05,2]
[398506284,1765763723743,150.0,7.576e-05,2]
[398506285,1765763724160,197.03,7.92e-05,2]
[398506286,1765763724573,262.71,8.264e-05,2]
[398506287,1765763724974,328.39,8.609e-05,2]
[398506288,1765763725420,394.06,8.953e-05,2]
[398506289,1765763726161,459.74,9.297e-05,2]
[398506290,1765763726438,525.42,9.642e-05,2]
[398506291,1765763726808,591.1,9.986e-05,2]
[398506292,1765763727226,656.77,0.0001033,2]
[398506293,1765763737494,4807.78838316,0.00013417,2]
[398506294,1765763737521,192.21161684,0.00013417,2]
[398506295,1765763745260,5000.0,0.00013417,2]
[398506297,1765763760822,4807.79838316,0.00013417,2]
[398506298,1765763760847,192.20161684,0.00013417,2]
[398506299,1765763766843,500.0,0.00013273,2]
[398506300,1765763775157,500.0,0.00013273,2]
[398506302,1765763779019,178.95269251,9.294e-05,2]
[398506303,1765763783908,5000.0,0.00013417,2]
[398506304,1765763784008,202.58573926,0.00012943,2]
[398506305,1765763791943,3426.26995139,0.00013417,2]
[398506306,1765763791964,1573.73004861,0.00013417,2]
[398506307,1765763798336,150.0,7.23e-05,2]
[398506308,1765763798748,150.0,7.575e-05,2]
[398506309,1765763799198,150.0,7.919e-05,2]
[398506310,1765763799612,173.52,8.263e-05,2]
[398506311,1765763800024,216.9,8.607e-05,2]
[398506312,1765763800496,260.28,8.952e-05,2]
[398506313,1765763800866,303.67,9.296e-05,2]
[398506314,1765763801297,347.05,9.64e-05,2]
[398506315,1765763801769,390.43,9.985e-05,2]
[398506316,1765763802301,433.81,0.00010329,2]
[398506317,1765763807112,5000.0,0.00013417,2]
[398506318,1765763816311,850.61995139,0.00013417,2]
[398506319,1765763816336,4149.38004861,0.00013417,2]
[398506321,1765763831519,5000.0,0.00013417,2]
[398506322,1765763845394,850.62995139,0.00013119,2]
[398506323,1765763845417,9006.11227591,0.00013119,2]
[398506324,1765763854156,993.89772409,0.00013417,2]
[398506325,1765763854181,4006.10227591,0.00013417,2]
[398506326,1765763868528,150.0,7.319e-05,2]
[398506327,1765763868944,150.0,7.667e-05,2]
[398506328,1765763869354,210.29,8.016e-05,2]
[398506329,1765763869754,280.39,8.364e-05,2]
[398506330,1765763870147,350.49,8.713e-05,2]
[398506331,1765763870602,420.59,9.061e-05,2]
[398506332,1765763870937,490.69,9.41e-05,2]
[398506333,1765763871402,560.79,9.758e-05,2]
[398506334,1765763871817,630.88,0.00010107,2]
[398506335,1765763872232,700.98,0.00010455,2]
[398506336,1765763876668,2048.80772409,0.00013417,2]
[398506337,1765763882996,307.94,0.00012,2]
[398506338,1765763883692,-277.02446828,0.00013417,2]